[Event "44th Chess Olympiad Women 2022"]
[Site "Chennai"]
[Date "2022.08.07"]
[Round "9.50"]
[White "Tsuses, Patience"]
[Black "Otisitswe Ruth"]
[Result "0-1"]
[WhiteElo "1075"]
[BlackElo "1552"]
[Annotator "NA RC"]
[PlyCount "180"]
[EventDate "2022.??.??"]
[TimeControl "60"]

1. e4 {[%emt 0:00:06]} c5 {[%emt 0:00:09]} 2. Nf3 {[%emt 0:00:26]} Nc6 {
[%emt 0:00:12]} 3. d4 {[%emt 0:00:47]} cxd4 {[%emt 0:00:15]} 4. Nxd4 {[%emt 0:
00:00]} g6 {[%emt 0:00:12]} 5. Nc3 {[%emt 0:01:08]} Bg7 {[%emt 0:00:12]} 6.
Nxc6 {[%emt 0:03:46]} bxc6 {[%emt 0:00:06]} 7. Bd2 {[%emt 0:00:43]} Nf6 {
[%emt 0:01:28]} 8. Bd3 {[%emt 0:00:58]} O-O {[%emt 0:00:52]} 9. O-O {[%emt 0:
00:00]} d5 {[%emt 0:00:04]} 10. exd5 {[%emt 0:06:05]} cxd5 {[%emt 0:00:09]} 11.
Qc1 {[%emt 0:01:09]} Qd6 {[%emt 0:02:26]} 12. Ne2 {[%emt 0:13:54]} e5 {[%emt 0:
00:00]} 13. Ng3 {[%emt 0:00:52]} Rb8 {[%emt 0:03:13]} 14. a3 {[%emt 0:04:24]}
Re8 {[%emt 0:03:41]} 15. Be2 {[%emt 0:11:09]} Qc6 {[%emt 0:02:01]} 16. h4 {
[%emt 0:03:04]} h5 {[%emt 0:00:45]} 17. c3 {[%emt 0:13:10]} Ng4 {[%emt 0:06:42]
} 18. b4 {[%emt 0:01:27]} f5 {[%emt 0:02:01]} 19. a4 {[%emt 0:02:48]} Qc7 {
[%emt 0:01:03]} 20. Re1 {[%emt 0:12:52]} f4 {[%emt 0:01:12]} 21. Bxg4 {[%emt 0:
00:00]} Bxg4 {[%emt 0:01:51]} 22. Nf1 {[%emt 0:01:31]} Rbc8 {[%emt 0:01:33]}
23. a5 {[%emt 0:03:08]} e4 {[%emt 0:12:00]} 24. Bxf4 {[%emt 0:01:26]} Qxc3 {
[%emt 0:00:07]} 25. Bd2 {[%emt 0:01:00]} Qxa1 {[%emt 0:01:45]} 26. Qxa1 {
[%emt 0:01:05]} Bxa1 {[%emt 0:00:05]} 27. Rxa1 {[%emt 0:00:03]} d4 {[%emt 0:00:
00]} 28. b5 {[%emt 0:01:52]} Rb8 {[%emt 0:01:46]} 29. Rb1 {[%emt 0:01:15]} Be2
{[%emt 0:00:06]} 30. b6 {[%emt 0:00:26]} axb6 {[%emt 0:00:05]} 31. axb6 {
[%emt 0:02:05]} Re6 {[%emt 0:00:52]} 32. Ng3 {[%emt 0:02:13]} Bd3 {[%emt 0:00:
00]} 33. Rb4 {[%emt 0:01:10]} Rbxb6 {[%emt 0:03:47]} 34. Rxd4 {[%emt 0:00:29]}
Rb2 {[%emt 0:00:25]} 35. Be3 {[%emt 0:00:29]} Kf7 {[%emt 0:01:18]} 36. Rd7+ {
[%emt 0:01:11]} Ke8 {[%emt 0:01:36]} 37. Ra7 {[%emt 0:01:14]} Rc6 {[%emt 0:00:
00]} 38. Ra8+ {[%emt 0:00:39]} Kd7 {[%emt 0:00:14]} 39. Ra7+ {[%emt 0:00:44]}
Ke6 {[%emt 0:01:03]} 40. Rg7 {[%emt 0:00:23]} Kd5 {[%emt 0:00:25]} 41. Rd7+ {
[%emt 0:33:44]} Rd6 {[%emt 0:30:17]} 42. Rg7 {[%emt 0:00:35]} Re6 {[%emt 0:00:
00]} 43. Rd7+ {[%emt 0:00:00]} Kc4 {[%emt 0:00:00]} 44. Rc7+ {[%emt 0:00:00]}
Kb3 {[%emt 0:00:00]} 45. Rb7+ {[%emt 0:00:00]} Ka2 {[%emt 0:00:00]} 46. Ra7+ {
[%emt 0:00:00]} Kb1 {[%emt 0:00:00]} 47. Rc7 {[%emt 0:00:00]} Rb3 {[%emt 0:00:
00]} 48. Rg7 {[%emt 0:00:00]} Bc2 {[%emt 0:00:00]} 49. Rc7 {[%emt 0:00:00]} Ra6
{[%emt 0:00:00]} 50. Rg7 {[%emt 0:00:00]} Rc6 {[%emt 0:00:00]} 51. Re7 {
[%emt 0:00:00]} Rb4 {[%emt 0:00:00]} 52. Rh7 {[%emt 0:00:00]} Rb5 {[%emt 0:00:
00]} 53. Rh8 {[%emt 0:00:00]} Bd3 {[%emt 0:01:17]} 54. Rf8 {[%emt 0:00:00]} Kc2
{[%emt 0:00:27]} 55. Re8 {[%emt 0:00:00]} Rb1+ {[%emt 0:01:02]} 56. Kh2 {
[%emt 0:00:00]} Rb4 {[%emt 0:00:15]} 57. Rf8 {[%emt 0:00:00]} Kd1 {[%emt 0:00:
00]} 58. Rf7 {[%emt 0:00:00]} Re6 {[%emt 0:03:17]} 59. Rf8 {[%emt 0:00:11]} Rb3
{[%emt 0:00:58]} 60. Rf7 {[%emt 0:00:34]} Be2 {[%emt 0:02:56]} 61. Rf4 {
[%emt 0:01:54]} Bd3 {[%emt 0:06:56]} 62. Rf7 {[%emt 0:00:23]} Bb1 {[%emt 0:00:
00]} 63. Rc7 {[%emt 0:02:05]} Bc2 {[%emt 0:00:19]} 64. Rd7+ {[%emt 0:01:08]}
Rd3 {[%emt 0:00:12]} 65. Ra7 {[%emt 0:00:11]} Rxe3 {[%emt 0:02:14]} 66. fxe3 {
[%emt 0:01:05]} Kd2 {[%emt 0:00:44]} 67. Ra2 {[%emt 0:01:59]} Kd3 {[%emt 0:00:
00]} 68. Ra3+ {[%emt 0:00:56]} Kc4 {[%emt 0:01:58]} 69. Ne2 {[%emt 0:02:46]}
Bd3 {[%emt 0:01:17]} 70. Nd4 {[%emt 0:01:21]} Rf6 {[%emt 0:00:51]} 71. Kg3 {
[%emt 0:00:49]} Kb4 {[%emt 0:00:53]} 72. Ra7 {[%emt 0:00:20]} Kc3 {[%emt 0:00:
00]} 73. Ra2 {[%emt 0:00:30]} Bb1 {[%emt 0:02:51]} 74. Rf2 {[%emt 0:00:23]} Rb6
{[%emt 0:00:13]} 75. Kf4 {[%emt 0:00:51]} Kd3 {[%emt 0:00:38]} 76. Ne6 {
[%emt 0:00:41]} Rxe6 {[%emt 0:00:27]} 77. Rb2 {[%emt 0:00:01]} Bc2 {[%emt 0:00:
00]} 78. Rb4 {[%emt 0:00:12]} Ke2 {[%emt 0:00:34]} 79. Rb2 {[%emt 0:00:34]} Rc6
{[%emt 0:00:13]} 80. g4 {[%emt 0:00:40]} hxg4 {[%emt 0:00:09]} 81. Kxg4 {
[%emt 0:00:01]} Kxe3 {[%emt 0:00:08]} 82. Kg5 {[%emt 0:00:11]} Kf3 {[%emt 0:00:
00]} 83. Rxc2 {[%emt 0:00:22]} Rxc2 {[%emt 0:00:05]} 84. Kxg6 {[%emt 0:00:04]}
e3 {[%emt 0:00:04]} 85. h5 {[%emt 0:00:01]} e2 {[%emt 0:00:04]} 86. h6 {
[%emt 0:00:11]} e1=Q {[%emt 0:00:05]} 87. h7 {[%emt 0:00:06]} Qe4+ {[%emt 0:00:
00]} 88. Kg7 {[%emt 0:00:06]} Rc7+ {[%emt 0:00:09]} 89. Kf6 {[%emt 0:00:06]}
Kg4 {[%emt 0:00:19]} 90. h8=Q {[%emt 0:00:34]} Qf5# {[%emt 0:00:05]} 0-1

[Event "44th Chess Olympiad Women 2022"]
[Site "Chennai"]
[Date "2022.08.07"]
[Round "9.51"]
[White "Dotse Dzidzor Esi"]
[Black "Natareno, Elvia"]
[Result "0-1"]
[WhiteElo "1195"]
[BlackElo "1581"]
[Annotator "NA"]
[PlyCount "116"]
[EventDate "2022.??.??"]
[TimeControl "60"]

1. d4 {[%emt 0:00:04]} Nf6 {[%emt 0:00:13]} 2. c4 {[%emt 0:00:16]} g6 {[%emt 0:
00:00]} 3. Nc3 {[%emt 0:00:05]} Bg7 {[%emt 0:00:08]} 4. Nf3 {[%emt 0:00:38]} d6
{[%emt 0:00:29]} 5. Bf4 {[%emt 0:01:38]} Bf5 {[%emt 0:00:26]} 6. e3 {[%emt 0:
00:00]} O-O {[%emt 0:00:47]} 7. Bd3 {[%emt 0:02:57]} Bg4 {[%emt 0:02:16]} 8. h3
{[%emt 0:02:05]} Bxf3 {[%emt 0:01:48]} 9. Qxf3 {[%emt 0:00:17]} e5 {[%emt 0:00:
00]} 10. Bh2 {[%emt 0:05:07]} exd4 {[%emt 0:00:18]} 11. exd4 {[%emt 0:02:46]}
Re8+ {[%emt 0:00:18]} 12. Be2 {[%emt 0:00:43]} Nc6 {[%emt 0:00:18]} 13. d5 {
[%emt 0:00:35]} Nd4 {[%emt 0:04:10]} 14. Qd3 {[%emt 0:01:53]} Nd7 {[%emt 0:00:
00]} 15. O-O {[%emt 0:02:12]} Nc5 {[%emt 0:01:01]} 16. Qd1 {[%emt 0:01:52]}
Nxe2+ {[%emt 0:02:57]} 17. Nxe2 {[%emt 0:00:55]} Bxb2 {[%emt 0:00:21]} 18. Rb1
{[%emt 0:00:49]} Bg7 {[%emt 0:00:08]} 19. Nd4 {[%emt 0:04:44]} Re4 {[%emt 0:00:
00]} 20. Nb3 {[%emt 0:01:39]} Rxc4 {[%emt 0:04:21]} 21. Nxc5 {[%emt 0:00:47]}
Rxc5 {[%emt 0:00:20]} 22. Rxb7 {[%emt 0:00:31]} Qg5 {[%emt 0:01:15]} 23. Qb3 {
[%emt 0:01:56]} h5 {[%emt 0:03:50]} 24. Rb8+ {[%emt 0:02:01]} Rxb8 {[%emt 0:00:
00]} 25. Qxb8+ {[%emt 0:00:06]} Kh7 {[%emt 0:00:06]} 26. Qxa7 {[%emt 0:00:19]}
Qxd5 {[%emt 0:00:16]} 27. a4 {[%emt 0:08:01]} Qd2 {[%emt 0:02:32]} 28. Bg3 {
[%emt 0:07:19]} Qc3 {[%emt 0:09:21]} 29. Rb1 {[%emt 0:03:09]} Ra5 {[%emt 0:00:
00]} 30. Qe3 {[%emt 0:03:36]} Qxe3 {[%emt 0:00:36]} 31. fxe3 {[%emt 0:00:06]}
Rxa4 {[%emt 0:00:12]} 32. Rc1 {[%emt 0:01:19]} Ra7 {[%emt 0:00:16]} 33. Bf2 {
[%emt 0:09:49]} Ra1 {[%emt 0:00:14]} 34. Rxa1 {[%emt 0:01:13]} Bxa1 {[%emt 0:
00:00]} 35. e4 {[%emt 0:00:07]} Kg7 {[%emt 0:00:08]} 36. Kf1 {[%emt 0:00:18]}
Kf6 {[%emt 0:00:06]} 37. Bg3 {[%emt 0:01:26]} g5 {[%emt 0:01:32]} 38. Ke2 {
[%emt 0:00:16]} Be5 {[%emt 0:00:11]} 39. Bf2 {[%emt 0:02:04]} Ke6 {[%emt 0:00:
00]} 40. Kd3 {[%emt 0:03:04]} f5 {[%emt 0:02:22]} 41. exf5+ {[%emt 0:34:16]}
Kxf5 {[%emt 0:30:15]} 42. Kc4 {[%emt 0:01:04]} c6 {[%emt 0:00:09]} 43. Kd3 {
[%emt 0:03:07]} h4 {[%emt 0:06:01]} 44. Ke3 {[%emt 0:01:50]} c5 {[%emt 0:03:54]
} 45. Kd3 {[%emt 0:00:57]} Bf4 {[%emt 0:01:19]} 46. Kc4 {[%emt 0:05:15]} Ke4 {
[%emt 0:00:17]} 47. Kc3 {[%emt 0:03:38]} Be3 {[%emt 0:00:39]} 48. Be1 {[%emt 0:
00:00]} d5 {[%emt 0:00:19]} 49. g3 {[%emt 0:10:03]} hxg3 {[%emt 0:00:24]} 50.
Bxg3 {[%emt 0:00:12]} Bf4 {[%emt 0:00:04]} 51. Bf2 {[%emt 0:00:39]} c4 {
[%emt 0:00:11]} 52. Bd4 {[%emt 0:00:00]} Bd2+ {[%emt 0:00:00]} 53. Kxd2 {
[%emt 0:00:00]} Kxd4 {[%emt 0:00:00]} 54. Kc2 {[%emt 0:00:00]} c3 {[%emt 0:00:
00]} 55. Kc1 {[%emt 0:00:00]} Kd3 {[%emt 0:00:00]} 56. Kd1 {[%emt 0:00:00]} d4
{[%emt 0:00:00]} 57. Kc1 {[%emt 0:00:00]} c2 {[%emt 0:00:00]} 58. Kb2 {[%emt 0:
00:00]} Kd2 {[%emt 0:00:00]} 0-1

[Event "44th Chess Olympiad Women 2022"]
[Site "Chennai"]
[Date "2022.08.07"]
[Round "9.51"]
[White "Felix, Tobi"]
[Black "Mazariegos, Silvia Carolina"]
[Result "1/2-1/2"]
[WhiteElo "1460"]
[BlackElo "1851"]
[Annotator "NA RC"]
[PlyCount "56"]
[EventDate "2022.??.??"]
[TimeControl "60"]

1. d4 {[%emt 0:00:02]} f5 {[%emt 0:00:07]} 2. Bf4 {[%emt 0:00:27]} Nf6 {
[%emt 0:00:12]} 3. e3 {[%emt 0:00:15]} e6 {[%emt 0:00:15]} 4. Nf3 {[%emt 0:00:
00]} g6 {[%emt 0:00:39]} 5. Be2 {[%emt 0:00:31]} Bg7 {[%emt 0:00:14]} 6. Nbd2 {
[%emt 0:00:29]} O-O {[%emt 0:00:14]} 7. h3 {[%emt 0:00:45]} d6 {[%emt 0:00:25]}
8. c3 {[%emt 0:00:25]} Qe7 {[%emt 0:00:41]} 9. Qc2 {[%emt 0:01:45]} Nbd7 {
[%emt 0:00:34]} 10. O-O {[%emt 0:01:04]} c6 {[%emt 0:04:32]} 11. e4 {[%emt 0:
00:00]} e5 {[%emt 0:04:15]} 12. dxe5 {[%emt 0:01:04]} dxe5 {[%emt 0:00:10]} 13.
Bg5 {[%emt 0:03:55]} h6 {[%emt 0:01:09]} 14. Bxf6 {[%emt 0:01:28]} Nxf6 {
[%emt 0:01:35]} 15. Nh4 {[%emt 0:00:48]} Nxe4 {[%emt 0:13:53]} 16. Nxg6 {
[%emt 0:01:29]} Qg5 {[%emt 0:00:15]} 17. Nxf8 {[%emt 0:05:17]} Nxd2 {[%emt 0:
00:00]} 18. Rfd1 {[%emt 0:00:44]} Bxf8 {[%emt 0:13:48]} 19. Qxd2 {[%emt 0:00:
00]} Qg7 {[%emt 0:02:25]} 20. Qd3 {[%emt 0:09:48]} Bc5 {[%emt 0:06:04]} 21.
Qd8+ {[%emt 0:02:40]} Kh7 {[%emt 0:00:21]} 22. Qh4 {[%emt 0:00:33]} Be6 {
[%emt 0:01:56]} 23. Kf1 {[%emt 0:04:33]} Rg8 {[%emt 0:07:14]} 24. g3 {[%emt 0:
00:00]} Be7 {[%emt 0:15:01]} 25. Qa4 {[%emt 0:03:52]} Bc5 {[%emt 0:00:14]} 26.
Qh4 {[%emt 0:08:40]} Be7 {[%emt 0:00:26]} 27. Qa4 {[%emt 0:00:34]} Bc5 {
[%emt 0:00:31]} 28. Qh4 {[%emt 0:00:19]} Be7 {[%emt 0:00:03]} 1/2-1/2

[Event "44th Chess Olympiad Women 2022"]
[Site "Chennai"]
[Date "2022.08.07"]
[Round "9.51"]
[White "Juarez Garcia, Daniela"]
[Black "Benson, Maud"]
[Result "1-0"]
[WhiteElo "1725"]
[BlackElo "1334"]
[Annotator "NA RC"]
[PlyCount "53"]
[EventDate "2022.??.??"]
[TimeControl "60"]

1. e4 {[%emt 0:00:06]} e5 {[%emt 0:00:19]} 2. Bc4 {[%emt 0:00:05]} d6 {[%emt 0:
00:00]} 3. d3 {[%emt 0:00:12]} Be7 {[%emt 0:00:46]} 4. Nf3 {[%emt 0:00:05]} Nd7
{[%emt 0:01:13]} 5. c3 {[%emt 0:00:07]} Ngf6 {[%emt 0:01:40]} 6. Nbd2 {[%emt 0:
00:00]} Nc5 {[%emt 0:04:45]} 7. Qe2 {[%emt 0:00:46]} O-O {[%emt 0:10:04]} 8.
O-O {[%emt 0:00:38]} Ne6 {[%emt 0:00:11]} 9. Nb3 {[%emt 0:05:26]} h6 {[%emt 0:
00:00]} 10. d4 {[%emt 0:01:58]} exd4 {[%emt 0:01:57]} 11. Nbxd4 {[%emt 0:02:22]
} Nxd4 {[%emt 0:04:21]} 12. Nxd4 {[%emt 0:01:28]} Bg4 {[%emt 0:03:20]} 13. f3 {
[%emt 0:00:32]} Bh5 {[%emt 0:00:57]} 14. Nf5 {[%emt 0:00:26]} Re8 {[%emt 0:00:
00]} 15. Qd3 {[%emt 0:08:46]} Nd7 {[%emt 0:01:47]} 16. Bf4 {[%emt 0:06:11]} Nc5
{[%emt 0:00:52]} 17. Qd5 {[%emt 0:01:08]} a5 {[%emt 0:03:41]} 18. Nxe7+ {
[%emt 0:00:26]} Qxe7 {[%emt 0:03:16]} 19. Qxh5 {[%emt 0:00:25]} Qf6 {[%emt 0:
00:00]} 20. Bg3 {[%emt 0:01:39]} Ne6 {[%emt 0:01:44]} 21. e5 {[%emt 0:01:44]}
dxe5 {[%emt 0:02:34]} 22. Bxe5 {[%emt 0:00:06]} Qe7 {[%emt 0:02:05]} 23. Bg3 {
[%emt 0:09:51]} Ng5 {[%emt 0:03:40]} 24. Bf2 {[%emt 0:01:11]} Qd6 {[%emt 0:00:
00]} 25. Rad1 {[%emt 0:01:23]} Qf4 {[%emt 0:00:52]} 26. Rd4 {[%emt 0:01:36]}
Qe5 {[%emt 0:02:36]} 27. f4 {[%emt 0:00:20]} 1-0

[Event "44th Chess Olympiad Women 2022"]
[Site "Chennai"]
[Date "2022.08.07"]
[Round "9.51"]
[White "Lopez L., Dairyn D."]
[Black "Appau Abena Tiwaa"]
[Result "1-0"]
[WhiteElo "1574"]
[BlackElo "1103"]
[Annotator "NA"]
[PlyCount "107"]
[EventDate "2022.??.??"]
[TimeControl "60"]

1. d4 {[%emt 0:00:05]} g6 {[%emt 0:00:35]} 2. Bf4 {[%emt 0:00:11]} Nf6 {
[%emt 0:00:23]} 3. h3 {[%emt 0:00:21]} Bg7 {[%emt 0:00:19]} 4. e3 {[%emt 0:00:
00]} O-O {[%emt 0:00:23]} 5. Nf3 {[%emt 0:00:06]} d6 {[%emt 0:00:24]} 6. Be2 {
[%emt 0:00:32]} Nbd7 {[%emt 0:00:16]} 7. O-O {[%emt 0:01:03]} b6 {[%emt 0:00:
00]} 8. c4 {[%emt 0:00:19]} Re8 {[%emt 0:00:40]} 9. d5 {[%emt 0:02:19]} Bb7 {
[%emt 0:03:23]} 10. Nc3 {[%emt 0:00:35]} e5 {[%emt 0:03:46]} 11. Bh2 {[%emt 0:
00:00]} a6 {[%emt 0:02:01]} 12. e4 {[%emt 0:02:31]} Qe7 {[%emt 0:03:34]} 13. b4
{[%emt 0:01:49]} c6 {[%emt 0:02:40]} 14. Qd3 {[%emt 0:06:58]} Rac8 {[%emt 0:00:
00]} 15. Nd2 {[%emt 0:06:03]} cxd5 {[%emt 0:04:42]} 16. Nxd5 {[%emt 0:01:15]}
Nxd5 {[%emt 0:07:20]} 17. cxd5 {[%emt 0:01:18]} Nf6 {[%emt 0:03:01]} 18. Rab1 {
[%emt 0:03:16]} b5 {[%emt 0:02:09]} 19. Nb3 {[%emt 0:00:52]} Qc7 {[%emt 0:00:
00]} 20. Rbc1 {[%emt 0:01:30]} Qb6 {[%emt 0:00:52]} 21. g4 {[%emt 0:02:30]}
Rxc1 {[%emt 0:01:30]} 22. Rxc1 {[%emt 0:00:07]} Bh6 {[%emt 0:01:23]} 23. Rc2 {
[%emt 0:00:45]} Bg5 {[%emt 0:01:44]} 24. Bg3 {[%emt 0:01:46]} Bc8 {[%emt 0:00:
00]} 25. Rc6 {[%emt 0:01:16]} Qb8 {[%emt 0:02:11]} 26. Na5 {[%emt 0:05:07]} Kg7
{[%emt 0:02:51]} 27. Kg2 {[%emt 0:03:18]} Rh8 {[%emt 0:01:59]} 28. Qc2 {
[%emt 0:03:37]} h5 {[%emt 0:04:13]} 29. h4 {[%emt 0:05:05]} Bf4 {[%emt 0:04:44]
} 30. g5 {[%emt 0:03:18]} Ng4 {[%emt 0:03:04]} 31. Bxf4 {[%emt 0:00:40]} exf4 {
[%emt 0:01:08]} 32. Qc3+ {[%emt 0:00:47]} Ne5 {[%emt 0:00:51]} 33. Rc7 {
[%emt 0:02:29]} Kh7 {[%emt 0:02:00]} 34. Qc1 {[%emt 0:13:34]} Rf8 {[%emt 0:00:
00]} 35. Rc3 {[%emt 0:01:20]} Bg4 {[%emt 0:01:54]} 36. Bxg4 {[%emt 0:02:18]}
Nxg4 {[%emt 0:00:37]} 37. Qxf4 {[%emt 0:04:02]} f6 {[%emt 0:04:07]} 38. Qc1 {
[%emt 0:07:38]} Rf7 {[%emt 0:02:33]} 39. f3 {[%emt 0:01:12]} Ne5 {[%emt 0:00:
00]} 40. Nc6 {[%emt 0:01:12]} Qe8 {[%emt 0:03:05]} 41. Nd4 {[%emt 0:31:00]} Qe7
{[%emt 0:35:47]} 42. Ne6 {[%emt 0:00:45]} fxg5 {[%emt 0:01:12]} 43. Nxg5+ {
[%emt 0:00:33]} Kg7 {[%emt 0:03:38]} 44. Nxf7 {[%emt 0:01:16]} Qxf7 {[%emt 0:
00:00]} 45. Rc7 {[%emt 0:01:02]} Nd7 {[%emt 0:00:12]} 46. Qc6 {[%emt 0:00:57]}
Kh6 {[%emt 0:01:28]} 47. Qxd7 {[%emt 0:00:12]} Qg8 {[%emt 0:03:04]} 48. Qe7 {
[%emt 0:00:33]} g5 {[%emt 0:01:10]} 49. Qxd6+ {[%emt 0:00:06]} Qg6 {[%emt 0:00:
00]} 50. Qxg6+ {[%emt 0:00:07]} Kxg6 {[%emt 0:00:27]} 51. Rc6+ {[%emt 0:00:04]}
Kh7 {[%emt 0:00:43]} 52. hxg5 {[%emt 0:00:04]} h4 {[%emt 0:00:49]} 53. Kh3 {
[%emt 0:00:04]} a5 {[%emt 0:00:25]} 54. bxa5 {[%emt 0:00:15]} 1-0

[Event "44th Chess Olympiad Women 2022"]
[Site "Chennai"]
[Date "2022.08.07"]
[Round "9.52"]
[White "Charinda, Kudzanayi"]
[Black "Roberts, Tallulah"]
[Result "1-0"]
[WhiteElo "1719"]
[BlackElo "1536"]
[Annotator "NA RC"]
[PlyCount "52"]
[EventDate "2022.??.??"]
[TimeControl "60"]

1. e4 {[%emt 0:00:10]} e6 {[%emt 0:00:01]} 2. d4 {[%emt 0:00:09]} d5 {[%emt 0:
00:00]} 3. Nc3 {[%emt 0:00:11]} dxe4 {[%emt 0:00:03]} 4. Nxe4 {[%emt 0:00:18]}
Nd7 {[%emt 0:00:07]} 5. Nf3 {[%emt 0:00:30]} Ngf6 {[%emt 0:00:05]} 6. Bd3 {
[%emt 0:00:30]} Nxe4 {[%emt 0:00:09]} 7. Bxe4 {[%emt 0:00:30]} Nf6 {[%emt 0:00:
00]} 8. Bd3 {[%emt 0:00:44]} Be7 {[%emt 0:00:58]} 9. Qe2 {[%emt 0:00:45]} h6 {
[%emt 0:01:23]} 10. h3 {[%emt 0:00:25]} c5 {[%emt 0:02:47]} 11. Be3 {[%emt 0:
00:00]} Qc7 {[%emt 0:07:00]} 12. Ne5 {[%emt 0:03:54]} cxd4 {[%emt 0:05:44]} 13.
Bxd4 {[%emt 0:00:47]} Bd7 {[%emt 0:01:02]} 14. Nxd7 {[%emt 0:01:16]} Nxd7 {
[%emt 0:01:07]} 15. Bxg7 {[%emt 0:01:21]} Rg8 {[%emt 0:01:32]} 16. Bxh6 {
[%emt 0:00:36]} Rxg2 {[%emt 0:01:38]} 17. O-O-O {[%emt 0:01:14]} O-O-O {
[%emt 0:00:50]} 18. Qf3 {[%emt 0:02:29]} Rgg8 {[%emt 0:04:00]} 19. Qxf7 {
[%emt 0:03:41]} Rde8 {[%emt 0:07:05]} 20. Qf3 {[%emt 0:02:12]} Qa5 {[%emt 0:00:
00]} 21. Kb1 {[%emt 0:00:50]} Ne5 {[%emt 0:11:02]} 22. Qe2 {[%emt 0:01:31]} Bf6
{[%emt 0:02:22]} 23. Bd2 {[%emt 0:02:12]} Qb6 {[%emt 0:00:44]} 24. Bb5 {
[%emt 0:02:44]} Rd8 {[%emt 0:02:34]} 25. Bc3 {[%emt 0:01:17]} Qc5 {[%emt 0:00:
00]} 26. f4 {[%emt 0:02:23]} Nd7 {[%emt 0:06:37]} 1-0

[Event "44th Chess Olympiad Women 2022"]
[Site "Chennai"]
[Date "2022.08.07"]
[Round "9.53"]
[White "Adhikari, Kritisara"]
[Black "Aishath Alya Mohamed Shareef"]
[Result "1-0"]
[WhiteElo "1552"]
[BlackElo "1110"]
[Annotator "NA"]
[PlyCount "105"]
[EventDate "2022.??.??"]
[TimeControl "60"]

1. d4 {[%emt 0:00:10]} d5 {[%emt 0:00:24]} 2. Bf4 {[%emt 0:00:17]} Nf6 {
[%emt 0:00:18]} 3. e3 {[%emt 0:00:23]} c5 {[%emt 0:01:23]} 4. c3 {[%emt 0:00:
00]} Qb6 {[%emt 0:01:29]} 5. Qb3 {[%emt 0:00:42]} c4 {[%emt 0:01:25]} 6. Qxb6 {
[%emt 0:06:35]} axb6 {[%emt 0:00:08]} 7. Nd2 {[%emt 0:00:55]} Bf5 {[%emt 0:00:
00]} 8. Ngf3 {[%emt 0:02:10]} Nc6 {[%emt 0:01:46]} 9. Be2 {[%emt 0:01:10]} e6 {
[%emt 0:02:05]} 10. h3 {[%emt 0:01:35]} h6 {[%emt 0:00:30]} 11. O-O {[%emt 0:
00:00]} Be7 {[%emt 0:02:19]} 12. b3 {[%emt 0:02:24]} b5 {[%emt 0:05:39]} 13. b4
{[%emt 0:06:17]} O-O {[%emt 0:01:29]} 14. Ne5 {[%emt 0:01:57]} Ra3 {[%emt 0:00:
00]} 15. Rfc1 {[%emt 0:15:27]} Rfa8 {[%emt 0:02:21]} 16. Nef3 {[%emt 0:06:35]}
Rxa2 {[%emt 0:01:39]} 17. Rxa2 {[%emt 0:00:13]} Rxa2 {[%emt 0:00:07]} 18. Kf1 {
[%emt 0:02:02]} Ne4 {[%emt 0:04:10]} 19. Nxe4 {[%emt 0:01:22]} Bxe4 {[%emt 0:
00:00]} 20. Ne1 {[%emt 0:03:47]} Bh4 {[%emt 0:11:34]} 21. g3 {[%emt 0:03:50]}
Bg5 {[%emt 0:02:29]} 22. Bxg5 {[%emt 0:02:10]} hxg5 {[%emt 0:00:06]} 23. Bf3 {
[%emt 0:02:10]} Bg6 {[%emt 0:03:51]} 24. Bg2 {[%emt 0:03:18]} Ne7 {[%emt 0:00:
00]} 25. g4 {[%emt 0:02:02]} f5 {[%emt 0:01:02]} 26. Nf3 {[%emt 0:01:44]} fxg4
{[%emt 0:06:40]} 27. hxg4 {[%emt 0:00:09]} Bd3+ {[%emt 0:01:15]} 28. Kg1 {
[%emt 0:01:14]} Kf7 {[%emt 0:01:23]} 29. Nxg5+ {[%emt 0:01:41]} Kf6 {[%emt 0:
00:00]} 30. Nf3 {[%emt 0:00:24]} g5 {[%emt 0:05:16]} 31. Ne5 {[%emt 0:01:25]}
Rc2 {[%emt 0:04:28]} 32. Rxc2 {[%emt 0:01:27]} Bxc2 {[%emt 0:00:07]} 33. Nd7+ {
[%emt 0:01:41]} Kf7 {[%emt 0:04:06]} 34. Kh2 {[%emt 0:03:48]} Ng6 {[%emt 0:00:
00]} 35. Nc5 {[%emt 0:05:18]} Bd1 {[%emt 0:01:04]} 36. f3 {[%emt 0:00:47]} b6 {
[%emt 0:00:43]} 37. Nd7 {[%emt 0:01:53]} Nh4 {[%emt 0:00:23]} 38. Kg3 {[%emt 0:
00:00]} Ke7 {[%emt 0:07:01]} 39. Ne5 {[%emt 0:01:47]} Nxg2 {[%emt 0:05:27]} 40.
Kxg2 {[%emt 0:00:10]} Bc2 {[%emt 0:01:30]} 41. Kg3 {[%emt 0:30:45]} Bd3 {
[%emt 0:33:41]} 42. f4 {[%emt 0:00:43]} gxf4+ {[%emt 0:00:38]} 43. exf4 {
[%emt 0:00:08]} Be4 {[%emt 0:00:00]} 44. Kh4 {[%emt 0:00:00]} Kf6 {[%emt 0:00:
00]} 45. Kh5 {[%emt 0:00:00]} Bh7 {[%emt 0:00:00]} 46. Kh6 {[%emt 0:00:00]} Bg8
{[%emt 0:00:00]} 47. Nd7+ {[%emt 0:00:00]} Ke7 {[%emt 0:00:00]} 48. Kg7 {
[%emt 0:00:00]} Kxd7 {[%emt 0:00:00]} 49. Kxg8 {[%emt 0:00:00]} Ke7 {[%emt 0:
00:00]} 50. Kg7 {[%emt 0:00:00]} Kd6 {[%emt 0:00:00]} 51. Kf6 {[%emt 0:00:00]}
Kd7 {[%emt 0:00:00]} 52. Kf7 {[%emt 0:00:00]} Kd8 {[%emt 0:00:00]} 53. g5 {
[%emt 0:00:00]} 1-0

[Event "44th Chess Olympiad Women 2022"]
[Site "Chennai"]
[Date "2022.08.07"]
[Round "9.53"]
[White "Lohani, Sujana"]
[Black "Nihaya, Ahmed"]
[Result "0-1"]
[WhiteElo "1697"]
[BlackElo "1233"]
[Annotator "NA"]
[PlyCount "82"]
[EventDate "2022.??.??"]
[TimeControl "60"]

1. d4 {[%emt 0:00:10]} Nf6 {[%emt 0:00:07]} 2. Nf3 {[%emt 0:00:33]} d6 {
[%emt 0:00:34]} 3. g3 {[%emt 0:01:14]} c5 {[%emt 0:01:42]} 4. Bg2 {[%emt 0:00:
00]} cxd4 {[%emt 0:05:04]} 5. Nxd4 {[%emt 0:00:55]} Qb6 {[%emt 0:01:14]} 6. O-O
{[%emt 0:02:59]} Nc6 {[%emt 0:00:24]} 7. c3 {[%emt 0:01:20]} e5 {[%emt 0:05:54]
} 8. Nf3 {[%emt 0:04:29]} Be7 {[%emt 0:01:06]} 9. Nbd2 {[%emt 0:03:31]} Qc7 {
[%emt 0:05:18]} 10. e4 {[%emt 0:02:14]} O-O {[%emt 0:00:30]} 11. Nh4 {[%emt 0:
00:00]} Be6 {[%emt 0:04:44]} 12. Nf5 {[%emt 0:09:02]} Rad8 {[%emt 0:07:27]} 13.
Qf3 {[%emt 0:04:23]} d5 {[%emt 0:03:31]} 14. Re1 {[%emt 0:02:12]} dxe4 {
[%emt 0:01:17]} 15. Nxe4 {[%emt 0:00:15]} Nxe4 {[%emt 0:00:48]} 16. Qxe4 {
[%emt 0:01:33]} Bf6 {[%emt 0:08:57]} 17. Bf1 {[%emt 0:03:33]} Qd7 {[%emt 0:00:
00]} 18. Ne3 {[%emt 0:00:43]} Be7 {[%emt 0:03:25]} 19. Rd1 {[%emt 0:19:19]} Qc8
{[%emt 0:01:05]} 20. Rxd8 {[%emt 0:04:25]} Rxd8 {[%emt 0:00:09]} 21. Bd3 {
[%emt 0:00:31]} g6 {[%emt 0:01:03]} 22. Bc2 {[%emt 0:01:02]} f5 {[%emt 0:00:50]
} 23. Qa4 {[%emt 0:02:49]} e4 {[%emt 0:12:09]} 24. Ng2 {[%emt 0:03:56]} a6 {
[%emt 0:01:36]} 25. Nf4 {[%emt 0:00:56]} b5 {[%emt 0:00:30]} 26. Bb3 {[%emt 0:
00:00]} bxa4 {[%emt 0:05:56]} 27. Bxe6+ {[%emt 0:00:08]} Qxe6 {[%emt 0:00:07]}
28. Nxe6 {[%emt 0:00:09]} Rd1+ {[%emt 0:00:08]} 29. Kg2 {[%emt 0:00:56]} Ne5 {
[%emt 0:00:07]} 30. Bf4 {[%emt 0:07:12]} Rxa1 {[%emt 0:00:42]} 31. Bxe5 {
[%emt 0:00:04]} Kf7 {[%emt 0:01:41]} 32. Nc7 {[%emt 0:00:52]} Bf6 {[%emt 0:00:
00]} 33. Bf4 {[%emt 0:05:48]} Rxa2 {[%emt 0:00:42]} 34. Bc1 {[%emt 0:00:40]}
Ra1 {[%emt 0:00:07]} 35. Be3 {[%emt 0:00:13]} Rb1 {[%emt 0:00:14]} 36. Nxa6 {
[%emt 0:00:45]} Rxb2 {[%emt 0:00:19]} 37. c4 {[%emt 0:02:03]} Be7 {[%emt 0:00:
00]} 38. c5 {[%emt 0:00:48]} Rc2 {[%emt 0:00:25]} 39. Bd4 {[%emt 0:00:21]} a3 {
[%emt 0:00:57]} 40. h3 {[%emt 0:01:36]} Rc4 {[%emt 0:00:39]} 41. Ba1 {[%emt 0:
00:00]} Bxc5 {[%emt 0:30:47]} 0-1